[Event "Late-Titled-Tuesday-Blitz-March-12-2024"]
[Site "Chess.com"]
[Date "2024.03.12"]
[Round "10"]
[White "Kopytkin"]
[Black "ferdipy"]
[Result "1-0"]
[WhiteElo "2432"]
[BlackElo "2319"]
[TimeControl "180+1"]
[EndTime "15:54:55 PDT"]
[Termination "Kopytkin won by checkmate"]

1. e4 {[%clk 0:02:21.1]} 1... e6 {[%clk 0:02:41.9]} 2. Nf3 {[%clk 0:02:15.8]}
2... d5 {[%clk 0:02:41.5]} 3. e5 {[%clk 0:02:16]} 3... c5 {[%clk 0:02:40.4]} 4.
d4 {[%clk 0:02:15.6]} 4... Nc6 {[%clk 0:02:40.2]} 5. a3 {[%clk 0:02:10.7]} 5...
cxd4 {[%clk 0:02:40.1]} 6. Bd3 {[%clk 0:02:10.3]} 6... Nge7 {[%clk 0:02:38.4]}
7. O-O {[%clk 0:02:09.8]} 7... Ng6 {[%clk 0:02:38.4]} 8. Re1 {[%clk 0:02:07.6]}
8... Qc7 {[%clk 0:02:37.2]} 9. Qe2 {[%clk 0:02:06.5]} 9... Bd7 {[%clk
0:02:35.4]} 10. h4 {[%clk 0:02:05.6]} 10... Be7 {[%clk 0:02:28.3]} 11. h5 {[%clk
0:02:04.4]} 11... Nf8 {[%clk 0:02:18.5]} 12. b4 {[%clk 0:01:55.6]} 12... h6
{[%clk 0:01:54.7]} 13. Nbd2 {[%clk 0:01:54.4]} 13... a6 {[%clk 0:01:41.1]} 14.
Nb3 {[%clk 0:01:54.3]} 14... Nh7 {[%clk 0:01:38.5]} 15. Bf4 {[%clk 0:01:43.5]}
15... Ng5 {[%clk 0:01:37]} 16. Nxg5 {[%clk 0:01:41.7]} 16... hxg5 {[%clk
0:01:37.9]} 17. Bg3 {[%clk 0:01:37.8]} 17... Na7 {[%clk 0:01:02.6]} 18. Nxd4
{[%clk 0:01:35.4]} 18... Rc8 {[%clk 0:00:57.5]} 19. Rab1 {[%clk 0:00:51]} 19...
Qc3 {[%clk 0:00:54.5]} 20. Qe3 {[%clk 0:00:44.1]} 20... Qxa3 {[%clk 0:00:38.1]}
21. Nxe6 {[%clk 0:00:26]} 21... Bxe6 {[%clk 0:00:34.5]} 22. Qxa7 {[%clk
0:00:26.1]} 22... b5 {[%clk 0:00:23.7]} 23. Rb3 {[%clk 0:00:19.7]} 23... Qa4
{[%clk 0:00:20.7]} 24. Reb1 {[%clk 0:00:17]} 24... d4 {[%clk 0:00:20.8]} 25.
R3b2 {[%clk 0:00:16.1]} 25... O-O {[%clk 0:00:20.3]} 26. Qxd4 {[%clk 0:00:15.7]}
26... Rfd8 {[%clk 0:00:19.5]} 27. Qe4 {[%clk 0:00:15.3]} 27... Rxd3 {[%clk
0:00:15.9]} 28. cxd3 {[%clk 0:00:13.8]} 28... Rd8 {[%clk 0:00:16.8]} 29. d4
{[%clk 0:00:13.6]} 29... g6 {[%clk 0:00:15.7]} 30. Qe3 {[%clk 0:00:12.7]} 30...
Bf5 {[%clk 0:00:14.5]} 31. hxg6 {[%clk 0:00:12.3]} 31... Bxb1 {[%clk 0:00:13]}
32. gxf7+ {[%clk 0:00:13.2]} 32... Kxf7 {[%clk 0:00:13.4]} 33. Rxb1 {[%clk
0:00:13.4]} 33... Qc2 {[%clk 0:00:13.4]} 34. Re1 {[%clk 0:00:12.7]} 34... Qg6
{[%clk 0:00:12.4]} 35. e6+ {[%clk 0:00:12.8]} 35... Kg7 {[%clk 0:00:12.8]} 36.
Qe5+ {[%clk 0:00:12]} 36... Kh7 {[%clk 0:00:13.4]} 37. d5 {[%clk 0:00:12]} 37...
Bf6 {[%clk 0:00:13.3]} 38. Qc7+ {[%clk 0:00:12]} 38... Kh6 {[%clk 0:00:12.4]}
39. d6 {[%clk 0:00:10.7]} 39... Qd3 {[%clk 0:00:10.4]} 40. e7 {[%clk 0:00:10.5]}
40... Re8 {[%clk 0:00:07.2]} 41. Qc6 {[%clk 0:00:08.8]} 41... Qg6 {[%clk
0:00:06.2]} 42. d7 {[%clk 0:00:06.9]} 42... Rxe7 {[%clk 0:00:05.8]} 43. Rxe7
{[%clk 0:00:01.9]} 43... Bxe7 {[%clk 0:00:06.3]} 44. Qxg6+ {[%clk 0:00:02]}
44... Kxg6 {[%clk 0:00:07.2]} 45. Bc7 {[%clk 0:00:02.4]} 45... Kf5 {[%clk
0:00:06.7]} 46. d8=Q {[%clk 0:00:02.4]} 46... Bxd8 {[%clk 0:00:07.4]} 47. Bxd8
{[%clk 0:00:01.8]} 47... g4 {[%clk 0:00:08.3]} 48. Ba5 {[%clk 0:00:02.1]} 48...
Ke4 {[%clk 0:00:08.9]} 49. Kf1 {[%clk 0:00:02.6]} 49... Kd3 {[%clk 0:00:09.2]}
50. Ke1 {[%clk 0:00:03.1]} 50... Ke4 {[%clk 0:00:08.7]} 51. Ke2 {[%clk
0:00:03.6]} 51... Kf4 {[%clk 0:00:08.9]} 52. Bc7+ {[%clk 0:00:02.9]} 52... Ke4
{[%clk 0:00:09.4]} 53. f3+ {[%clk 0:00:03.5]} 53... gxf3+ {[%clk 0:00:10.3]} 54.
gxf3+ {[%clk 0:00:04]} 54... Kd4 {[%clk 0:00:11.2]} 55. f4 {[%clk 0:00:04.2]}
55... Kd5 {[%clk 0:00:11.9]} 56. Ke3 {[%clk 0:00:04.4]} 56... Ke6 {[%clk
0:00:12.2]} 57. Ba5 {[%clk 0:00:04.6]} 57... Kf5 {[%clk 0:00:13.1]} 58. Kf3
{[%clk 0:00:05]} 58... Ke6 {[%clk 0:00:13.7]} 59. Ke4 {[%clk 0:00:05.9]} 59...
Kf6 {[%clk 0:00:14.6]} 60. f5 {[%clk 0:00:06.7]} 60... Kf7 {[%clk 0:00:15]} 61.
Bb6 {[%clk 0:00:07.6]} 61... Ke7 {[%clk 0:00:15.1]} 62. Bc5+ {[%clk 0:00:08.5]}
62... Kf7 {[%clk 0:00:15.7]} 63. Ke5 {[%clk 0:00:08.9]} 63... Ke8 {[%clk
0:00:16.2]} 64. Ke6 {[%clk 0:00:09]} 64... Kd8 {[%clk 0:00:15.8]} 65. f6 {[%clk
0:00:09]} 65... Kc7 {[%clk 0:00:16.2]} 66. f7 {[%clk 0:00:09.3]} 66... Kc6
{[%clk 0:00:16.3]} 67. f8=Q {[%clk 0:00:09.3]} 67... Kb7 {[%clk 0:00:16.6]} 68.
Qe7+ {[%clk 0:00:09.4]} 68... Ka8 {[%clk 0:00:17.5]} 69. Qd8+ {[%clk 0:00:09.2]}
69... Kb7 {[%clk 0:00:17.7]} 70. Qd7+ {[%clk 0:00:09.6]} 70... Kb8 {[%clk
0:00:18.1]} 71. Bd6+ {[%clk 0:00:08.7]} 71... Ka8 {[%clk 0:00:18.3]} 72. Qc8+
{[%clk 0:00:08.6]} 72... Ka7 {[%clk 0:00:18.6]} 73. Bc5# {[%clk 0:00:09.1]} 1-0

[Event "Late-Titled-Tuesday-Blitz-March-12-2024"]
[Site "Chess.com"]
[Date "2024.03.12"]
[Round "10"]
[White "SchmakAttack"]
[Black "dropstoneDP"]
[Result "0-1"]
[WhiteElo "2838"]
[BlackElo "2983"]
[TimeControl "180+1"]
[EndTime "15:55:05 PDT"]
[Termination "dropstoneDP won by resignation"]

1. c4 {[%clk 0:03:00.9]} 1... c5 {[%clk 0:02:53.4]} 2. Nf3 {[%clk 0:03:00.3]}
2... Nf6 {[%clk 0:02:53.5]} 3. g3 {[%clk 0:02:57.4]} 3... d5 {[%clk 0:02:50.4]}
4. cxd5 {[%clk 0:02:55.3]} 4... Nxd5 {[%clk 0:02:51.3]} 5. Bg2 {[%clk
0:02:54.7]} 5... Nc6 {[%clk 0:02:51.6]} 6. O-O {[%clk 0:02:52.9]} 6... e5 {[%clk
0:02:48.2]} 7. Nc3 {[%clk 0:02:49.4]} 7... Be6 {[%clk 0:02:47.4]} 8. d3 {[%clk
0:02:08.2]} 8... Be7 {[%clk 0:02:47.5]} 9. Bd2 {[%clk 0:01:56.6]} 9... O-O
{[%clk 0:02:45.4]} 10. Nxd5 {[%clk 0:01:55.4]} 10... Bxd5 {[%clk 0:02:46.3]} 11.
Bc3 {[%clk 0:01:55.9]} 11... Qd6 {[%clk 0:02:43.6]} 12. Nd2 {[%clk 0:01:52.2]}
12... Bxg2 {[%clk 0:02:42.3]} 13. Kxg2 {[%clk 0:01:53.1]} 13... Kh8 {[%clk
0:02:30.8]} 14. Qb3 {[%clk 0:01:47.7]} 14... Rab8 {[%clk 0:02:29.1]} 15. a4
{[%clk 0:01:43.1]} 15... f5 {[%clk 0:02:22.1]} 16. Rac1 {[%clk 0:01:42.1]} 16...
Bg5 {[%clk 0:02:13.7]} 17. Kg1 {[%clk 0:01:25.9]} 17... Bxd2 {[%clk 0:02:12.3]}
18. Bxd2 {[%clk 0:01:26.8]} 18... Nd4 {[%clk 0:02:12.4]} 19. Qd1 {[%clk
0:01:27.5]} 19... f4 {[%clk 0:02:12.5]} 20. Bc3 {[%clk 0:01:22.9]} 20... Qd5
{[%clk 0:01:55.6]} 21. Bxd4 {[%clk 0:01:10.8]} 21... exd4 {[%clk 0:01:56.5]} 22.
Qd2 {[%clk 0:00:57.7]} 22... Rbe8 {[%clk 0:01:47.9]} 23. Rc2 {[%clk 0:00:54.2]}
23... Re6 {[%clk 0:01:38.2]} 24. b4 {[%clk 0:00:52.1]} 24... fxg3 {[%clk
0:01:25.6]} 25. hxg3 {[%clk 0:00:40.2]} 25... Rh6 {[%clk 0:01:20.3]} 26. f3
{[%clk 0:00:40.5]} 26... Qh5 {[%clk 0:01:15.6]} 27. Kf2 {[%clk 0:00:40.8]} 27...
Qh2+ {[%clk 0:01:10.3]} 28. Ke1 {[%clk 0:00:41.3]} 28... Qxg3+ {[%clk
0:01:09.9]} 29. Kd1 {[%clk 0:00:41.9]} 29... cxb4 {[%clk 0:00:57.6]} 30. Qxb4
{[%clk 0:00:42.8]} 30... Rhf6 {[%clk 0:00:44.6]} 31. Qxd4 {[%clk 0:00:40.3]}
31... a6 {[%clk 0:00:39.7]} 32. Rg1 {[%clk 0:00:31.5]} 32... Qh2 {[%clk
0:00:35.4]} 33. Rg4 {[%clk 0:00:28.8]} 33... b5 {[%clk 0:00:21.7]} 34. axb5
{[%clk 0:00:20]} 34... axb5 {[%clk 0:00:22.6]} 35. Qd7 {[%clk 0:00:16.9]} 35...
Qh1+ {[%clk 0:00:19.5]} 36. Kd2 {[%clk 0:00:17.6]} 36... Qh6+ {[%clk 0:00:19.2]}
37. Ke1 {[%clk 0:00:15.5]} 37... g6 {[%clk 0:00:12.9]} 38. Rc8 {[%clk
0:00:08.4]} 38... Rxc8 {[%clk 0:00:12.6]} 39. Qxc8+ {[%clk 0:00:09.3]} 39... Rf8
{[%clk 0:00:12.9]} 40. Qc3+ {[%clk 0:00:08.1]} 40... Kg8 {[%clk 0:00:12.9]} 41.
Qb3+ {[%clk 0:00:08.1]} 41... Kg7 {[%clk 0:00:11.7]} 42. Qxb5 {[%clk 0:00:08.3]}
42... Qe3 {[%clk 0:00:06.8]} 43. Qb2+ {[%clk 0:00:07.2]} 43... Kg8 {[%clk
0:00:06.7]} 44. Qd4 {[%clk 0:00:07.8]} 44... Rxf3 {[%clk 0:00:04.5]} 45. Qd5+
{[%clk 0:00:05.4]} 45... Rf7 {[%clk 0:00:04.8]} 46. Rc4 {[%clk 0:00:04]} 46...
Qg1+ {[%clk 0:00:03.7]} 47. Kd2 {[%clk 0:00:04.1]} 47... Qf2 {[%clk 0:00:03.4]}
48. Re4 {[%clk 0:00:02.1]} 48... Kg7 {[%clk 0:00:03.4]} 49. Qd4+ {[%clk
0:00:02.4]} 49... Qxd4 {[%clk 0:00:03.5]} 50. Rxd4 {[%clk 0:00:03.3]} 50... h5
{[%clk 0:00:03.4]} 51. e4 {[%clk 0:00:03.9]} 51... h4 {[%clk 0:00:03.5]} 52. e5
{[%clk 0:00:04.5]} 52... g5 {[%clk 0:00:03.7]} 53. Re4 {[%clk 0:00:03.6]} 53...
h3 {[%clk 0:00:03.8]} 54. d4 {[%clk 0:00:03.6]} 54... h2 {[%clk 0:00:03.7]} 55.
Re1 {[%clk 0:00:03.8]} 55... g4 {[%clk 0:00:04.3]} 56. e6 {[%clk 0:00:04.3]}
56... Re7 {[%clk 0:00:03.2]} 57. d5 {[%clk 0:00:04.4]} 57... g3 {[%clk
0:00:02.8]} 58. d6 {[%clk 0:00:04.8]} 58... Rxe6 {[%clk 0:00:03.4]} 59. d7
{[%clk 0:00:04.7]} 59... Rd6+ {[%clk 0:00:03.5]} 60. Ke2 {[%clk 0:00:05.4]}
60... Rxd7 {[%clk 0:00:03.9]} 61. Kf3 {[%clk 0:00:06.1]} 61... Rd3+ {[%clk
0:00:03.9]} 62. Kg2 {[%clk 0:00:06.8]} 62... Kg6 {[%clk 0:00:04.4]} 63. Ra1
{[%clk 0:00:07.4]} 63... Kf5 {[%clk 0:00:04.5]} 64. Ra5+ {[%clk 0:00:07.9]}
64... Ke4 {[%clk 0:00:04.6]} 65. Ra1 {[%clk 0:00:07.7]} 65... Re3 {[%clk
0:00:03.7]} 66. Ra4+ {[%clk 0:00:07.5]} 66... Kf5 {[%clk 0:00:04.3]} 67. Ra5+
{[%clk 0:00:07.9]} 67... Kf4 {[%clk 0:00:04.8]} 68. Ra4+ {[%clk 0:00:08.2]}
68... Re4 {[%clk 0:00:05.4]} 69. Ra1 {[%clk 0:00:08.2]} 69... Re2+ {[%clk
0:00:05.5]} 70. Kh1 {[%clk 0:00:08.3]} 70... Re4 {[%clk 0:00:04.6]} 71. Kg2
{[%clk 0:00:08.4]} 71... Kg4 {[%clk 0:00:05]} 72. Rb1 {[%clk 0:00:06.7]} 72...
Re2+ {[%clk 0:00:04.8]} 73. Kh1 {[%clk 0:00:07.2]} 73... Kh3 {[%clk 0:00:04.9]}
0-1

[Event "Late-Titled-Tuesday-Blitz-March-12-2024"]
[Site "Chess.com"]
[Date "2024.03.12"]
[Round "10"]
[White "Felix-Rose"]
[Black "karinachess1"]
[Result "0-1"]
[WhiteElo "2308"]
[BlackElo "2607"]
[TimeControl "180+1"]
[EndTime "15:55:06 PDT"]
[Termination "karinachess1 won on time"]

1. e4 {[%clk 0:03:00]} 1... e5 {[%clk 0:03:00]} 2. Nf3 {[%clk 0:03:00]} 2... Nc6
{[%clk 0:03:00.5]} 3. d4 {[%clk 0:02:57.1]} 3... exd4 {[%clk 0:03:00.5]} 4. Nxd4
{[%clk 0:02:58]} 4... Bc5 {[%clk 0:03:00.5]} 5. Nxc6 {[%clk 0:02:55.8]} 5... Qf6
{[%clk 0:02:52.8]} 6. Qf3 {[%clk 0:02:55.5]} 6... bxc6 {[%clk 0:02:45.5]} 7. Nd2
{[%clk 0:02:41.7]} 7... d6 {[%clk 0:02:42.1]} 8. Bd3 {[%clk 0:02:39.8]} 8... Bd7
{[%clk 0:02:20.7]} 9. O-O {[%clk 0:02:37]} 9... Qxf3 {[%clk 0:02:16]} 10. Nxf3
{[%clk 0:02:36.8]} 10... Ne7 {[%clk 0:02:16.6]} 11. c4 {[%clk 0:02:24.1]} 11...
O-O {[%clk 0:02:13.5]} 12. b3 {[%clk 0:02:11.4]} 12... Bg4 {[%clk 0:02:01.9]}
13. Bb2 {[%clk 0:02:10.7]} 13... Bxf3 {[%clk 0:01:55.8]} 14. gxf3 {[%clk
0:02:11.6]} 14... Ng6 {[%clk 0:01:56.5]} 15. Rad1 {[%clk 0:01:40]} 15... Rfe8
{[%clk 0:01:53.5]} 16. Bb1 {[%clk 0:01:25.9]} 16... Nf4 {[%clk 0:01:41]} 17. Kh1
{[%clk 0:01:20.4]} 17... Re6 {[%clk 0:01:35.1]} 18. Bc1 {[%clk 0:00:51.7]} 18...
Rf6 {[%clk 0:01:24.9]} 19. Bxf4 {[%clk 0:00:22.7]} 19... Rxf4 {[%clk 0:01:25.8]}
20. Rd3 {[%clk 0:00:22.8]} 20... Re8 {[%clk 0:01:21.7]} 21. Kg2 {[%clk
0:00:22.6]} 21... Re6 {[%clk 0:01:06.9]} 22. Kg3 {[%clk 0:00:22.9]} 22... g5
{[%clk 0:01:04.2]} 23. h3 {[%clk 0:00:16.5]} 23... Kg7 {[%clk 0:00:59.6]} 24.
Bc2 {[%clk 0:00:16.5]} 24... Rh6 {[%clk 0:00:52.2]} 25. Rh1 {[%clk 0:00:16.8]}
25... Rhf6 {[%clk 0:00:48.8]} 26. Bd1 {[%clk 0:00:17.1]} 26... Rh4 {[%clk
0:00:38]} 27. Rd2 {[%clk 0:00:14.1]} 27... Bb4 {[%clk 0:00:33.4]} 28. Re2 {[%clk
0:00:13.3]} 28... Bc3 {[%clk 0:00:31.7]} 29. Bc2 {[%clk 0:00:11.8]} 29... Be5+
{[%clk 0:00:31.6]} 30. Kg2 {[%clk 0:00:11.8]} 30... Bd4 {[%clk 0:00:26.2]} 31.
Rd1 {[%clk 0:00:11.7]} 31... c5 {[%clk 0:00:26.3]} 32. Bd3 {[%clk 0:00:11.3]}
32... Rhf4 {[%clk 0:00:25.7]} 33. Rc2 {[%clk 0:00:09.3]} 33... Rxf3 {[%clk
0:00:25.6]} 34. Rdd2 {[%clk 0:00:09.5]} 34... Bxf2 {[%clk 0:00:20.6]} 35. Rxf2
{[%clk 0:00:09.9]} 35... Rxd3 {[%clk 0:00:20.7]} 36. Rxf6 {[%clk 0:00:10.2]}
36... Kxf6 {[%clk 0:00:21.6]} 37. Rf2+ {[%clk 0:00:10.1]} 37... Ke6 {[%clk
0:00:22.1]} 38. Kh2 {[%clk 0:00:09.4]} 38... Re3 {[%clk 0:00:20.4]} 39. Rg2
{[%clk 0:00:08.4]} 39... h6 {[%clk 0:00:18.8]} 40. h4 {[%clk 0:00:09]} 40... f6
{[%clk 0:00:17.7]} 41. hxg5 {[%clk 0:00:09.3]} 41... hxg5 {[%clk 0:00:18.6]} 42.
Kg1 {[%clk 0:00:07.7]} 42... Rxe4 {[%clk 0:00:18.7]} 43. Rh2 {[%clk 0:00:08.2]}
43... Re1+ {[%clk 0:00:16.3]} 44. Kf2 {[%clk 0:00:08.4]} 44... Ra1 {[%clk
0:00:17]} 45. Ke3 {[%clk 0:00:08.7]} 45... f5 {[%clk 0:00:13.7]} 46. Rh6+ {[%clk
0:00:09]} 46... Ke5 {[%clk 0:00:14.1]} 47. Rh7 {[%clk 0:00:09.1]} 47... f4+
{[%clk 0:00:08.7]} 48. Kf3 {[%clk 0:00:09.5]} 48... Rxa2 {[%clk 0:00:07.4]} 49.
Re7+ {[%clk 0:00:09.6]} 49... Kf6 {[%clk 0:00:07.7]} 50. Rxc7 {[%clk 0:00:09.7]}
50... Ra3 {[%clk 0:00:06]} 51. Kg4 {[%clk 0:00:09.8]} 51... Rxb3 {[%clk
0:00:05.4]} 52. Rxa7 {[%clk 0:00:10.3]} 52... Rg3+ {[%clk 0:00:05.5]} 53. Kh5
{[%clk 0:00:11]} 53... f3 {[%clk 0:00:05.8]} 54. Rd7 {[%clk 0:00:10.3]} 54...
Ke6 {[%clk 0:00:04.5]} 55. Rd8 {[%clk 0:00:09.9]} 55... f2 {[%clk 0:00:05]} 56.
Re8+ {[%clk 0:00:10.4]} 56... Kf7 {[%clk 0:00:04]} 57. Rh8 {[%clk 0:00:09]}
57... f1=Q {[%clk 0:00:03.6]} 58. Rh7+ {[%clk 0:00:09.9]} 58... Kg8 {[%clk
0:00:03.6]} 59. Kg6 {[%clk 0:00:09.9]} 59... Qd3+ {[%clk 0:00:03.2]} 60. Kf6
{[%clk 0:00:08.4]} 60... Qxh7 {[%clk 0:00:03.4]} 61. Ke6 {[%clk 0:00:08.1]}
61... Re3+ {[%clk 0:00:03.8]} 62. Kf6 {[%clk 0:00:07.8]} 62... Qf7+ {[%clk
0:00:03.7]} 63. Kxg5 {[%clk 0:00:07.9]} 63... Re5+ {[%clk 0:00:04.2]} 64. Kg4
{[%clk 0:00:08.1]} 64... Qf5+ {[%clk 0:00:04.6]} 65. Kg3 {[%clk 0:00:08.6]}
65... Re3+ {[%clk 0:00:05]} 66. Kg2 {[%clk 0:00:08.7]} 66... Qh3+ {[%clk
0:00:05.2]} 67. Kf2 {[%clk 0:00:08.2]} 67... Qf3+ {[%clk 0:00:05.7]} 68. Kg1
{[%clk 0:00:07.6]} 68... Re1+ {[%clk 0:00:06.6]} 0-1

[Event "Late-Titled-Tuesday-Blitz-March-12-2024"]
[Site "Chess.com"]
[Date "2024.03.12"]
[Round "10"]
[White "SpeedofLight0"]
[Black "kingofthenil"]
[Result "1/2-1/2"]
[WhiteElo "3065"]
[BlackElo "2778"]
[TimeControl "180+1"]
[EndTime "15:55:28 PDT"]
[Termination "Game drawn by repetition"]

1. d4 {[%clk 0:03:00.9]} 1... d5 {[%clk 0:02:29.3]} 2. Nc3 {[%clk 0:03:00.9]}
2... e6 {[%clk 0:02:28.6]} 3. Bf4 {[%clk 0:03:00.8]} 3... a6 {[%clk 0:02:28.4]}
4. Nf3 {[%clk 0:02:59.4]} 4... Nf6 {[%clk 0:02:25.8]} 5. e3 {[%clk 0:02:59.6]}
5... b5 {[%clk 0:02:25.4]} 6. Bd3 {[%clk 0:03:00.2]} 6... Nbd7 {[%clk 0:02:25]}
7. O-O {[%clk 0:03:00]} 7... c5 {[%clk 0:02:24.9]} 8. dxc5 {[%clk 0:02:58.1]}
8... Nxc5 {[%clk 0:02:24.5]} 9. Ne5 {[%clk 0:02:58.1]} 9... Bd6 {[%clk
0:02:22.4]} 10. Bg3 {[%clk 0:02:51.5]} 10... Qc7 {[%clk 0:02:21.2]} 11. f4
{[%clk 0:02:49.1]} 11... O-O {[%clk 0:02:18.6]} 12. a3 {[%clk 0:02:45.4]} 12...
Bb7 {[%clk 0:02:18.2]} 13. Qe2 {[%clk 0:02:42.2]} 13... Rac8 {[%clk 0:02:17.5]}
14. Rad1 {[%clk 0:02:41.4]} 14... Nce4 {[%clk 0:02:11.4]} 15. Bxe4 {[%clk
0:02:40.2]} 15... dxe4 {[%clk 0:02:06.2]} 16. Rd2 {[%clk 0:02:20.3]} 16... b4
{[%clk 0:01:40.6]} 17. axb4 {[%clk 0:02:16.4]} 17... Bxb4 {[%clk 0:01:41.5]} 18.
f5 {[%clk 0:01:44.2]} 18... Bxc3 {[%clk 0:01:38.5]} 19. bxc3 {[%clk 0:01:40]}
19... Qxc3 {[%clk 0:01:39.4]} 20. Kh1 {[%clk 0:01:03.7]} 20... Rfd8 {[%clk
0:00:39.5]} 21. Rdd1 {[%clk 0:00:52.2]} 21... Rxd1 {[%clk 0:00:29.2]} 22. Qxd1
{[%clk 0:00:53.1]} 22... Bd5 {[%clk 0:00:29.7]} 23. Ng4 {[%clk 0:00:48.5]} 23...
Nxg4 {[%clk 0:00:21.8]} 24. Qxg4 {[%clk 0:00:49.4]} 24... exf5 {[%clk
0:00:22.1]} 25. Qxf5 {[%clk 0:00:49.6]} 25... Be6 {[%clk 0:00:20.7]} 26. Qg5
{[%clk 0:00:49.4]} 26... h6 {[%clk 0:00:15.9]} 27. Qf4 {[%clk 0:00:48.3]} 27...
Qxc2 {[%clk 0:00:15.6]} 28. h3 {[%clk 0:00:46.8]} 28... Qd3 {[%clk 0:00:15.1]}
29. Ra1 {[%clk 0:00:43.5]} 29... Rc2 {[%clk 0:00:14.9]} 30. Bf2 {[%clk
0:00:34.8]} 30... Qd2 {[%clk 0:00:14.6]} 31. Kg1 {[%clk 0:00:21.6]} 31... a5
{[%clk 0:00:14.8]} 32. Rf1 {[%clk 0:00:14.4]} 32... Bc4 {[%clk 0:00:11]} 33. Rb1
{[%clk 0:00:12.1]} 33... Rc1+ {[%clk 0:00:10.8]} 34. Rxc1 {[%clk 0:00:12.6]}
34... Qxc1+ {[%clk 0:00:11.7]} 35. Kh2 {[%clk 0:00:13.5]} 35... Bd3 {[%clk
0:00:11.6]} 36. Qb8+ {[%clk 0:00:11.6]} 36... Kh7 {[%clk 0:00:11.6]} 37. Qa7
{[%clk 0:00:12.3]} 37... Qd2 {[%clk 0:00:08.5]} 38. Kg3 {[%clk 0:00:12.4]} 38...
f6 {[%clk 0:00:06.6]} 39. Qd7 {[%clk 0:00:08.9]} 39... Qb4 {[%clk 0:00:06.8]}
40. Qf5+ {[%clk 0:00:08.8]} 40... Kg8 {[%clk 0:00:06.6]} 41. Qd5+ {[%clk
0:00:09]} 41... Kf8 {[%clk 0:00:06.3]} 42. Kh2 {[%clk 0:00:07.8]} 42... Ke7
{[%clk 0:00:03.9]} 43. Bg3 {[%clk 0:00:07.9]} 43... Qc4 {[%clk 0:00:04.3]} 44.
Qxa5 {[%clk 0:00:05.8]} 44... Kf7 {[%clk 0:00:04.1]} 45. Qh5+ {[%clk 0:00:05.5]}
45... Kg8 {[%clk 0:00:04]} 46. Qe8+ {[%clk 0:00:05.8]} 46... Kh7 {[%clk
0:00:04.2]} 47. Qe7 {[%clk 0:00:06.7]} 47... Qd5 {[%clk 0:00:03.8]} 48. Bd6
{[%clk 0:00:06]} 48... Qf5 {[%clk 0:00:03.5]} 49. Qc7 {[%clk 0:00:05.7]} 49...
Qg6 {[%clk 0:00:04.4]} 50. Bf4 {[%clk 0:00:05.2]} 50... Bf1 {[%clk 0:00:03.7]}
51. Qc2 {[%clk 0:00:05.3]} 51... Bd3 {[%clk 0:00:03.6]} 52. Qd2 {[%clk
0:00:05.9]} 52... Qf5 {[%clk 0:00:03.8]} 53. Bg3 {[%clk 0:00:06.4]} 53... Qg6
{[%clk 0:00:03.2]} 54. Qb4 {[%clk 0:00:06.7]} 54... Qf7 {[%clk 0:00:03.5]} 55.
Qd6 {[%clk 0:00:07]} 55... Qg6 {[%clk 0:00:04.4]} 56. Qd7 {[%clk 0:00:07]} 56...
h5 {[%clk 0:00:03.9]} 57. Bf2 {[%clk 0:00:06.7]} 57... Bf1 {[%clk 0:00:03.7]}
58. g3 {[%clk 0:00:03.7]} 58... Bd3 {[%clk 0:00:04.6]} 59. Kg1 {[%clk
0:00:02.5]} 59... Qg5 {[%clk 0:00:04.4]} 60. Qd4 {[%clk 0:00:02.1]} 60... Qf5
{[%clk 0:00:04.3]} 61. Kg2 {[%clk 0:00:02.6]} 61... Qf3+ {[%clk 0:00:04.6]} 62.
Kg1 {[%clk 0:00:03.3]} 62... Qe2 {[%clk 0:00:04.7]} 63. Qa1 {[%clk 0:00:02.9]}
63... Qf3 {[%clk 0:00:04.8]} 64. Qe1 {[%clk 0:00:03.5]} 64... Bc4 {[%clk
0:00:04.8]} 65. Kh2 {[%clk 0:00:04]} 65... Be2 {[%clk 0:00:04.6]} 66. Qg1 {[%clk
0:00:04.2]} 66... Bb5 {[%clk 0:00:04.5]} 67. Qe1 {[%clk 0:00:04.8]} 67... Qf5
{[%clk 0:00:04.8]} 68. Bg1 {[%clk 0:00:05.1]} 68... Bd7 {[%clk 0:00:05.3]} 69.
g4 {[%clk 0:00:04.3]} 69... hxg4 {[%clk 0:00:06.2]} 70. Qh4+ {[%clk 0:00:04.7]}
70... Kg8 {[%clk 0:00:06.6]} 71. hxg4 {[%clk 0:00:03.5]} 71... Qf3 {[%clk
0:00:06.6]} 72. g5 {[%clk 0:00:03.1]} 72... Qe2+ {[%clk 0:00:06.5]} 73. Kh1
{[%clk 0:00:02.6]} 73... Bg4 {[%clk 0:00:06.4]} 74. Bf2 {[%clk 0:00:02.2]} 74...
Qf1+ {[%clk 0:00:06.4]} 75. Kh2 {[%clk 0:00:02.2]} 75... Bf3 {[%clk 0:00:07.3]}
76. Kg3 {[%clk 0:00:02.4]} 76... Qg2+ {[%clk 0:00:07.5]} 77. Kf4 {[%clk
0:00:02.9]} 77... fxg5+ {[%clk 0:00:07.5]} 78. Qxg5 {[%clk 0:00:03.8]} 78...
Qxf2 {[%clk 0:00:08.1]} 79. Qd5+ {[%clk 0:00:03.2]} 79... Kh7 {[%clk 0:00:08.1]}
80. Qf5+ {[%clk 0:00:03.6]} 80... Kh6 {[%clk 0:00:07.6]} 81. Qg5+ {[%clk
0:00:03.7]} 81... Kh7 {[%clk 0:00:07.6]} 82. Qf5+ {[%clk 0:00:04.6]} 82... Kg8
{[%clk 0:00:07.2]} 83. Qd5+ {[%clk 0:00:04.3]} 83... Kf8 {[%clk 0:00:07.4]} 84.
Qd8+ {[%clk 0:00:04.6]} 84... Kf7 {[%clk 0:00:07.9]} 85. Qd7+ {[%clk 0:00:05.5]}
85... Kf6 {[%clk 0:00:07.1]} 86. Qd6+ {[%clk 0:00:05.1]} 86... Kf7 {[%clk
0:00:07.1]} 87. Qd7+ {[%clk 0:00:06]} 87... Kg8 {[%clk 0:00:06.1]} 88. Qd5+
{[%clk 0:00:05.8]} 1/2-1/2